[Event "Titled Tuesday Blitz June 28 Early 2022"]
[White "Gormally, Daniel W"]
[Black "Oparin, Grigoriy"]
[WhiteFideId "406465"]
[BlackFideId "24125890"]
[WhiteElo "2805"]
[BlackElo "2991"]
[Result "1-0"]
[Round "06"]
[TimeControl "180+1"]
[Date "2022.06.28"]
[WhiteClock "0:00:08"]
[BlackClock "0:00:01"]

1. e4 {[%clk 0:02:59]}  c5 {[%clk 0:02:59]} 2. Nc3 {[%clk 0:03:00]}  d6 {[%clk 0:02:59]} 3. f4 {[%clk 0:02:59]}  g6 {[%clk 0:02:59]} 4. Nf3 {[%clk 0:03:00]}  Bg7 {[%clk 0:03:00]} 5. Bb5+ {[%clk 0:03:00]}  Bd7 {[%clk 0:03:00]} 6. Bc4 {[%clk 0:03:00]}  Nc6 {[%clk 0:03:00]} 7. O-O {[%clk 0:03:01]}  Na5 {[%clk 0:02:59]} 8. d3 {[%clk 0:02:58]}  e6 {[%clk 0:02:56]} 9. a4 {[%clk 0:02:56]}  Nxc4 {[%clk 0:02:50]} 10. dxc4 {[%clk 0:02:57]}  Qc7 {[%clk 0:02:48]} 11. Nb5 {[%clk 0:02:54]}  Bxb5 {[%clk 0:02:47]} 12. axb5 {[%clk 0:02:54]}  Ne7 {[%clk 0:02:47]} 13. Qd3 {[%clk 0:02:49]}  O-O {[%clk 0:02:46]} 14. c3 {[%clk 0:02:38]}  a6 {[%clk 0:02:46]} 15. bxa6 {[%clk 0:02:29]}  Rxa6 {[%clk 0:02:47]} 16. Be3 {[%clk 0:02:25]}  Rfa8 {[%clk 0:02:46]} 17. Rxa6 {[%clk 0:02:25]}  Rxa6 {[%clk 0:02:47]} 18. Rd1 {[%clk 0:02:23]}  h6 {[%clk 0:02:45]} 19. h3 {[%clk 0:02:23]}  Qc8 {[%clk 0:02:07]} 20. b4 {[%clk 0:02:09]}  cxb4 {[%clk 0:02:04]} 21. cxb4 {[%clk 0:02:08]}  Bf8 {[%clk 0:01:37]} 22. c5 {[%clk 0:02:02]}  d5 {[%clk 0:01:27]} 23. Ne5 {[%clk 0:01:57]}  Bg7 {[%clk 0:01:24]} 24. Bd4 {[%clk 0:01:56]}  h5 {[%clk 0:01:16]} 25. Nf3 {[%clk 0:01:51]}  dxe4 {[%clk 0:00:59]} 26. Qxe4 {[%clk 0:01:51]}  Qd7 {[%clk 0:00:55]} 27. Qe2 {[%clk 0:01:48]}  Bxd4+ {[%clk 0:00:43]} 28. Rxd4 {[%clk 0:01:44]}  Ra1+ {[%clk 0:00:44]} 29. Kh2 {[%clk 0:01:44]}  Qc7 {[%clk 0:00:43]} 30. Qe5 {[%clk 0:01:43]}  Qxe5 {[%clk 0:00:44]} 31. Nxe5 {[%clk 0:01:43]}  Nd5 {[%clk 0:00:44]} 32. b5 {[%clk 0:01:36]}  Rb1 {[%clk 0:00:38]} 33. b6 {[%clk 0:01:14]}  h4 {[%clk 0:00:38]} 34. g4 {[%clk 0:01:10]}  hxg3+ {[%clk 0:00:33]} 35. Kxg3 {[%clk 0:01:10]}  Rb2 {[%clk 0:00:33]} 36. Rc4 {[%clk 0:01:07]}  Rb3+ {[%clk 0:00:32]} 37. Kf2 {[%clk 0:01:04]}  Kg7 {[%clk 0:00:28]} 38. h4 {[%clk 0:00:58]}  f6 {[%clk 0:00:26]} 39. Nf3 {[%clk 0:00:55]}  Kh6 {[%clk 0:00:27]} 40. Re4 {[%clk 0:00:45]}  Rb5 {[%clk 0:00:22]} 41. Rxe6 {[%clk 0:00:35]}  Rxc5 {[%clk 0:00:22]} 42. Kg3 {[%clk 0:00:36]}  Rb5 {[%clk 0:00:18]} 43. Rd6 {[%clk 0:00:36]}  Nxb6 {[%clk 0:00:10]} 44. Rxf6 {[%clk 0:00:36]}  Nd5 {[%clk 0:00:10]} 45. Re6 {[%clk 0:00:34]}  Rb3 {[%clk 0:00:08]} 46. Re5 {[%clk 0:00:25]}  Ne3 {[%clk 0:00:07]} 47. Re8 {[%clk 0:00:20]}  Nf5+ {[%clk 0:00:08]} 48. Kg4 {[%clk 0:00:20]}  b5 {[%clk 0:00:09]} 49. Rb8 {[%clk 0:00:17]}  b4 {[%clk 0:00:09]} 50. Rb7 {[%clk 0:00:17]}  Ne3+ {[%clk 0:00:07]} 51. Kg3 {[%clk 0:00:17]}  Nf5+ {[%clk 0:00:07]} 52. Kf2 {[%clk 0:00:17]}  Kh5 {[%clk 0:00:04]} 53. Ne5 {[%clk 0:00:16]}  Nh6 {[%clk 0:00:03]} 54. Rh7 {[%clk 0:00:16]}  Rb2+ {[%clk 0:00:03]} 55. Kf3 {[%clk 0:00:16]}  Rb3+ {[%clk 0:00:04]} 56. Ke4 {[%clk 0:00:16]}  Rb1 {[%clk 0:00:04]} 57. Nf7 {[%clk 0:00:16]}  Kxh4 {[%clk 0:00:02]} 58. Rxh6+ {[%clk 0:00:16]}  Kg3 {[%clk 0:00:02]} 59. Rxg6+ {[%clk 0:00:16]}  Kf2 {[%clk 0:00:03]} 60. f5 {[%clk 0:00:17]}  b3 {[%clk 0:00:03]} 61. Kd3 {[%clk 0:00:17]}  Rc1 {[%clk 0:00:02]} 62. Rb6 {[%clk 0:00:15]}  Rc5 {[%clk 0:00:03]} 63. Nd6 {[%clk 0:00:15]}  Kf3 {[%clk 0:00:02]} 64. Kd4 {[%clk 0:00:13]}  Ra5 {[%clk 0:00:01]} 65. Rxb3+ {[%clk 0:00:13]}  Kf4 {[%clk 0:00:01]} 66. Rb4 {[%clk 0:00:11]}  Kg5 {[%clk 0:00:01]} 67. Rb6 {[%clk 0:00:09]}  Ra1 {[%clk 0:00:01]} 68. Ke5 {[%clk 0:00:09]}  Ra5+ {[%clk 0:00:01]} 69. Ke6 {[%clk 0:00:09]}  Ra4 {[%clk 0:00:01]} 70. Rb5 {[%clk 0:00:08]}  Ra6 {[%clk 0:00:01]} 71. Re5 {[%clk 0:00:08]} 1-0


[Site "https://www.chess.com"]

[Event "Titled Tuesday Blitz June 28 Early 2022"]
[White "Gueci, Tea"]
[Black "Ciuffoletti, Paolo"]
[WhiteFideId "872342"]
[BlackFideId "807630"]
[WhiteElo "2142"]
[BlackElo "2143"]
[Result "1-0"]
[Round "06"]
[TimeControl "180+1"]
[Date "2022.06.28"]
[WhiteClock "0:00:20"]
[BlackClock "0:00:05"]

1. e4 {[%clk 0:03:00]}  c5 {[%clk 0:02:59]} 2. Nf3 {[%clk 0:03:01]}  Nc6 {[%clk 0:02:58]} 3. Bb5 {[%clk 0:03:00]}  e6 {[%clk 0:02:57]} 4. O-O {[%clk 0:02:58]}  Nge7 {[%clk 0:02:57]} 5. d4 {[%clk 0:02:57]}  cxd4 {[%clk 0:02:57]} 6. Nxd4 {[%clk 0:02:58]}  Nxd4 {[%clk 0:02:57]} 7. Qxd4 {[%clk 0:02:57]}  Ng6 {[%clk 0:02:48]} 8. Be3 {[%clk 0:02:52]}  f6 {[%clk 0:02:40]} 9. Be2 {[%clk 0:02:44]}  b6 {[%clk 0:02:30]} 10. Qd2 {[%clk 0:02:39]}  Bb7 {[%clk 0:02:28]} 11. f3 {[%clk 0:02:37]}  d5 {[%clk 0:02:19]} 12. exd5 {[%clk 0:02:35]}  Qxd5 {[%clk 0:02:10]} 13. Bd3 {[%clk 0:02:35]}  Bc5 {[%clk 0:02:06]} 14. Kh1 {[%clk 0:02:28]}  O-O {[%clk 0:02:01]} 15. Nc3 {[%clk 0:02:28]}  Bxe3 {[%clk 0:01:53]} 16. Qxe3 {[%clk 0:02:28]}  Qe5 {[%clk 0:01:28]} 17. Qf2 {[%clk 0:02:18]}  Nf4 {[%clk 0:01:27]} 18. Rae1 {[%clk 0:02:14]}  Nxd3 {[%clk 0:01:22]} 19. cxd3 {[%clk 0:02:14]}  Qf5 {[%clk 0:01:12]} 20. Ne4 {[%clk 0:02:11]}  Rfd8 {[%clk 0:01:08]} 21. Qe3 {[%clk 0:02:05]}  Ba6 {[%clk 0:01:03]} 22. Rd1 {[%clk 0:01:59]}  Rac8 {[%clk 0:01:00]} 23. Rfe1 {[%clk 0:01:43]}  Rc2 {[%clk 0:00:54]} 24. Re2 {[%clk 0:01:43]}  Rxe2 {[%clk 0:00:47]} 25. Qxe2 {[%clk 0:01:44]}  Qe5 {[%clk 0:00:42]} 26. Qc2 {[%clk 0:01:39]}  h5 {[%clk 0:00:33]} 27. h3 {[%clk 0:01:16]}  h4 {[%clk 0:00:31]} 28. a3 {[%clk 0:01:06]}  Qd4 {[%clk 0:00:29]} 29. Nf2 {[%clk 0:01:05]}  Qe3 {[%clk 0:00:26]} 30. Qd2 {[%clk 0:00:46]}  Qxd2 {[%clk 0:00:25]} 31. Rxd2 {[%clk 0:00:47]}  Rc8 {[%clk 0:00:25]} 32. Kg1 {[%clk 0:00:43]}  Kf7 {[%clk 0:00:25]} 33. Kf1 {[%clk 0:00:41]}  e5 {[%clk 0:00:25]} 34. Ke2 {[%clk 0:00:41]}  Ke6 {[%clk 0:00:24]} 35. Ne4 {[%clk 0:00:40]}  Rc1 {[%clk 0:00:22]} 36. Nc3 {[%clk 0:00:37]}  Rg1 {[%clk 0:00:21]} 37. Kf2 {[%clk 0:00:37]}  Rc1 {[%clk 0:00:21]} 38. Ne2 {[%clk 0:00:30]}  Rc5 {[%clk 0:00:16]} 39. f4 {[%clk 0:00:31]}  Rd5 {[%clk 0:00:14]} 40. fxe5 {[%clk 0:00:28]}  fxe5 {[%clk 0:00:13]} 41. Ke3 {[%clk 0:00:28]}  Rb5 {[%clk 0:00:11]} 42. Ng1 {[%clk 0:00:27]}  Rb3 {[%clk 0:00:11]} 43. Nf3 {[%clk 0:00:27]}  Bb7 {[%clk 0:00:09]} 44. Nxh4 {[%clk 0:00:27]}  g5 {[%clk 0:00:08]} 45. Nf3 {[%clk 0:00:27]}  Kf5 {[%clk 0:00:09]} 46. g4+ {[%clk 0:00:24]}  Kf6 {[%clk 0:00:08]} 47. Rf2 {[%clk 0:00:22]}  e4 {[%clk 0:00:07]} 48. Nd2+ {[%clk 0:00:21]}  Ke5 {[%clk 0:00:05]} 49. Rf5+ {[%clk 0:00:20]} 1-0


[Site "https://www.chess.com"]

[Event "Titled Tuesday Blitz June 28 Early 2022"]
[White "Gundam, Rohit"]
[Black "Aggelis, Nikolaos"]
[WhiteFideId "75002809"]
[BlackFideId "4213220"]
[WhiteElo "2343"]
[BlackElo "2154"]
[Result "0-1"]
[Round "06"]
[TimeControl "180+1"]
[Date "2022.06.28"]
[WhiteClock "0:00:06"]
[BlackClock "0:02:05"]

1. d4 {[%clk 0:03:00]}  Nf6 {[%clk 0:02:54]} 2. Nf3 {[%clk 0:03:00]}  g6 {[%clk 0:02:53]} 3. c4 {[%clk 0:03:01]}  b6 {[%clk 0:02:53]} 4. Nc3 {[%clk 0:03:02]}  d5 {[%clk 0:02:53]} 5. cxd5 {[%clk 0:03:01]}  Nxd5 {[%clk 0:02:54]} 6. e4 {[%clk 0:03:01]}  Nxc3 {[%clk 0:02:54]} 7. bxc3 {[%clk 0:03:02]}  Bb7 {[%clk 0:02:54]} 8. Bb5+ {[%clk 0:02:52]}  c6 {[%clk 0:02:53]} 9. Bc4 {[%clk 0:01:50]}  Bg7 {[%clk 0:02:54]} 10. O-O {[%clk 0:01:42]}  O-O {[%clk 0:02:54]} 11. e5 {[%clk 0:01:42]}  c5 {[%clk 0:02:54]} 12. Be3 {[%clk 0:01:11]}  Nc6 {[%clk 0:02:52]} 13. dxc5 {[%clk 0:01:06]}  Nxe5 {[%clk 0:02:50]} 14. Nxe5 {[%clk 0:01:00]}  Bxe5 {[%clk 0:02:51]} 15. cxb6 {[%clk 0:00:57]}  axb6 {[%clk 0:02:49]} 16. Qxd8 {[%clk 0:00:47]}  Rfxd8 {[%clk 0:02:50]} 17. Bxb6 {[%clk 0:00:46]}  Rdc8 {[%clk 0:02:51]} 18. Bb3 {[%clk 0:00:42]}  Rxc3 {[%clk 0:02:45]} 19. Rac1 {[%clk 0:00:35]}  Rac8 {[%clk 0:02:41]} 20. Rxc3 {[%clk 0:00:34]}  Rxc3 {[%clk 0:02:42]} 21. Ba5 {[%clk 0:00:33]}  Rd3 {[%clk 0:02:37]} 22. Rd1 {[%clk 0:00:30]}  Rxd1+ {[%clk 0:02:35]} 23. Bxd1 {[%clk 0:00:30]}  Bd5 {[%clk 0:02:35]} 24. a4 {[%clk 0:00:26]}  Kf8 {[%clk 0:02:33]} 25. Bb4 {[%clk 0:00:26]}  Bb7 {[%clk 0:02:30]} 26. Be2 {[%clk 0:00:24]}  Ke8 {[%clk 0:02:23]} 27. a5 {[%clk 0:00:24]}  Bd4 {[%clk 0:02:20]} 28. a6 {[%clk 0:00:20]}  Bc6 {[%clk 0:02:19]} 29. Bd2 {[%clk 0:00:14]}  Kd7 {[%clk 0:02:16]} 30. Be3 {[%clk 0:00:14]}  Bxe3 {[%clk 0:02:12]} 31. fxe3 {[%clk 0:00:15]}  Kc7 {[%clk 0:02:12]} 32. Kf2 {[%clk 0:00:09]}  Kb6 {[%clk 0:02:12]} 33. g4 {[%clk 0:00:06]}  Bd7 {[%clk 0:02:12]} 34. Kg3 {[%clk 0:00:04]}  Bc8 {[%clk 0:02:12]} 35. Kf4 {[%clk 0:00:03]}  Bxa6 {[%clk 0:02:13]} 36. Bxa6 {[%clk 0:00:03]}  Kxa6 {[%clk 0:02:14]} 37. Kg5 {[%clk 0:00:04]}  Kb5 {[%clk 0:02:04]} 38. e4 {[%clk 0:00:03]}  Kc4 {[%clk 0:02:03]} 39. Kh6 {[%clk 0:00:03]}  Kd4 {[%clk 0:02:03]} 40. Kxh7 {[%clk 0:00:03]}  Kxe4 {[%clk 0:02:03]} 41. Kg7 {[%clk 0:00:04]}  f5 {[%clk 0:02:02]} 42. gxf5 {[%clk 0:00:02]}  gxf5 {[%clk 0:02:02]} 43. h4 {[%clk 0:00:02]}  f4 {[%clk 0:02:02]} 44. h5 {[%clk 0:00:03]}  f3 {[%clk 0:02:03]} 45. h6 {[%clk 0:00:04]}  f2 {[%clk 0:02:03]} 46. h7 {[%clk 0:00:05]}  f1=Q {[%clk 0:02:04]} 47. h8=Q {[%clk 0:00:06]}  Qf6+ {[%clk 0:02:05]} 48. Kh7 {[%clk 0:00:06]}  Qxh8+ {[%clk 0:02:05]} 49. Kxh8 {[%clk 0:00:06]} 0-1


[Site "https://www.chess.com"]

[Event "Titled Tuesday Blitz June 28 Early 2022"]
[White "Harsh Suresh"]
[Black "Dinu, Dumitru-Daniel"]
[WhiteFideId "45018464"]
[BlackFideId "1208403"]
[WhiteElo "2059"]
[BlackElo "2240"]
[Result "1-0"]
[Round "06"]
[TimeControl "180+1"]
[Date "2022.06.28"]
[WhiteClock "0:01:14"]
[BlackClock "0:00:33"]

1. Nf3 {[%clk 0:02:58]}  Nf6 {[%clk 0:02:59]} 2. b3 {[%clk 0:02:57]}  g6 {[%clk 0:02:58]} 3. Bb2 {[%clk 0:02:57]}  Bg7 {[%clk 0:02:59]} 4. e3 {[%clk 0:02:53]}  O-O {[%clk 0:02:59]} 5. d4 {[%clk 0:02:52]}  d5 {[%clk 0:02:59]} 6. Be2 {[%clk 0:02:52]}  c5 {[%clk 0:03:00]} 7. Nbd2 {[%clk 0:02:52]}  Nc6 {[%clk 0:03:00]} 8. dxc5 {[%clk 0:02:51]}  Qa5 {[%clk 0:02:55]} 9. O-O {[%clk 0:02:47]}  Qxc5 {[%clk 0:02:55]} 10. c4 {[%clk 0:02:46]}  dxc4 {[%clk 0:02:54]} 11. Bxc4 {[%clk 0:02:42]}  Bf5 {[%clk 0:02:53]} 12. Rc1 {[%clk 0:02:41]}  Qb6 {[%clk 0:02:52]} 13. Nd4 {[%clk 0:02:39]}  Nxd4 {[%clk 0:02:46]} 14. Bxd4 {[%clk 0:02:40]}  Qa5 {[%clk 0:02:46]} 15. a4 {[%clk 0:02:38]}  Rfd8 {[%clk 0:02:44]} 16. Qe2 {[%clk 0:02:34]}  Rac8 {[%clk 0:02:39]} 17. Rfd1 {[%clk 0:02:33]}  a6 {[%clk 0:02:21]} 18. Nf3 {[%clk 0:02:29]}  Ne4 {[%clk 0:02:08]} 19. Bxg7 {[%clk 0:02:25]}  Kxg7 {[%clk 0:02:09]} 20. Nd4 {[%clk 0:02:25]}  Nc3 {[%clk 0:02:04]} 21. Qb2 {[%clk 0:02:19]}  b5 {[%clk 0:01:48]} 22. Rxc3 {[%clk 0:02:00]}  bxc4 {[%clk 0:01:41]} 23. Rxc4 {[%clk 0:01:54]}  Kg8 {[%clk 0:01:40]} 24. Rxc8 {[%clk 0:01:51]}  Rxc8 {[%clk 0:01:41]} 25. Nxf5 {[%clk 0:01:48]}  Qxf5 {[%clk 0:01:42]} 26. h3 {[%clk 0:01:46]}  e5 {[%clk 0:01:34]} 27. Rd2 {[%clk 0:01:37]}  Qe4 {[%clk 0:01:25]} 28. b4 {[%clk 0:01:28]}  Rc4 {[%clk 0:01:17]} 29. b5 {[%clk 0:01:28]}  axb5 {[%clk 0:01:16]} 30. axb5 {[%clk 0:01:27]}  Rb4 {[%clk 0:01:15]} 31. Qa3 {[%clk 0:01:27]}  Rxb5 {[%clk 0:01:00]} 32. Rd8+ {[%clk 0:01:25]}  Kg7 {[%clk 0:01:00]} 33. Qf8+ {[%clk 0:01:23]}  Kf6 {[%clk 0:01:00]} 34. Rd6+ {[%clk 0:01:23]}  Kg5 {[%clk 0:01:01]} 35. Qxf7 {[%clk 0:01:17]}  h6 {[%clk 0:00:34]} 36. Qf6+ {[%clk 0:01:14]}  Kh5 {[%clk 0:00:33]} 37. g4+ {[%clk 0:01:14]} 1-0


[Site "https://www.chess.com"]

[Event "Titled Tuesday Blitz June 28 Early 2022"]
[White "Hartikainen, Jarmo"]
[Black "Sahil, Tickoo"]
[WhiteFideId "503134"]
[BlackFideId "5019710"]
[WhiteElo "2160"]
[BlackElo "2047"]
[Result "0-1"]
[Round "06"]
[TimeControl "180+1"]
[Date "2022.06.28"]
[WhiteClock "0:00:12"]
[BlackClock "0:01:27"]

1. e4 {[%clk 0:03:00]}  c5 {[%clk 0:02:59]} 2. c3 {[%clk 0:03:00]}  d5 {[%clk 0:02:59]} 3. exd5 {[%clk 0:03:00]}  Nf6 {[%clk 0:03:00]} 4. d4 {[%clk 0:02:56]}  Nxd5 {[%clk 0:02:57]} 5. Nf3 {[%clk 0:02:54]}  e6 {[%clk 0:02:56]} 6. Bd3 {[%clk 0:02:36]}  cxd4 {[%clk 0:02:56]} 7. Nxd4 {[%clk 0:02:33]}  a6 {[%clk 0:02:54]} 8. O-O {[%clk 0:02:13]}  Qc7 {[%clk 0:02:52]} 9. a4 {[%clk 0:01:46]}  Bd6 {[%clk 0:02:51]} 10. h3 {[%clk 0:01:39]}  Nc6 {[%clk 0:02:46]} 11. Nxc6 {[%clk 0:01:31]}  Qxc6 {[%clk 0:02:45]} 12. Na3 {[%clk 0:01:28]}  O-O {[%clk 0:02:41]} 13. Nc4 {[%clk 0:01:25]}  Bc7 {[%clk 0:02:39]} 14. Ne3 {[%clk 0:01:22]}  Rd8 {[%clk 0:02:34]} 15. Qc2 {[%clk 0:01:20]}  h6 {[%clk 0:02:33]} 16. Ng4 {[%clk 0:01:08]}  Nf4 {[%clk 0:02:19]} 17. Be4 {[%clk 0:01:01]}  Qd6 {[%clk 0:02:07]} 18. Bxf4 {[%clk 0:00:33]}  Qxf4 {[%clk 0:02:05]} 19. Rad1 {[%clk 0:00:31]}  Rxd1 {[%clk 0:01:59]} 20. Rxd1 {[%clk 0:00:31]}  f5 {[%clk 0:01:53]} 21. Bxb7 {[%clk 0:00:16]}  Bxb7 {[%clk 0:01:48]} 22. Rd7 {[%clk 0:00:14]}  fxg4 {[%clk 0:01:39]} 23. Qg6 {[%clk 0:00:14]}  Qh2+ {[%clk 0:01:34]} 24. Kf1 {[%clk 0:00:13]}  Qxg2+ {[%clk 0:01:34]} 25. Ke1 {[%clk 0:00:12]}  Qe4+ {[%clk 0:01:27]} 26. Kd1 {[%clk 0:00:12]}  Qxg6 {[%clk 0:01:27]} 0-1


[Site "https://www.chess.com"]

[Event "Titled Tuesday Blitz June 28 Early 2022"]
[White "Harvey, Marcus R"]
[Black "Al-Tarboush, Ward"]
[WhiteFideId "400092"]
[BlackFideId "7601450"]
[WhiteElo "2485"]
[BlackElo "2249"]
[Result "0-1"]
[Round "06"]
[TimeControl "180+1"]
[Date "2022.06.28"]
[WhiteClock "0:00:08"]
[BlackClock "0:00:04"]

1. d4 {[%clk 0:02:59]}  d5 {[%clk 0:02:58]} 2. c4 {[%clk 0:02:59]}  c6 {[%clk 0:02:58]} 3. cxd5 {[%clk 0:02:57]}  cxd5 {[%clk 0:02:59]} 4. Bf4 {[%clk 0:02:58]}  Nf6 {[%clk 0:02:57]} 5. e3 {[%clk 0:02:58]}  Nc6 {[%clk 0:02:56]} 6. Bb5 {[%clk 0:02:54]}  Qa5+ {[%clk 0:02:53]} 7. Nc3 {[%clk 0:02:54]}  Bg4 {[%clk 0:02:52]} 8. Ne2 {[%clk 0:02:53]}  e6 {[%clk 0:02:51]} 9. O-O {[%clk 0:02:52]}  Bb4 {[%clk 0:02:49]} 10. f3 {[%clk 0:02:51]}  Bf5 {[%clk 0:02:47]} 11. a3 {[%clk 0:02:51]}  Be7 {[%clk 0:02:43]} 12. b4 {[%clk 0:02:50]}  Qb6 {[%clk 0:02:42]} 13. g4 {[%clk 0:02:42]}  Bg6 {[%clk 0:02:41]} 14. Bg3 {[%clk 0:02:42]}  O-O {[%clk 0:02:36]} 15. Bf2 {[%clk 0:02:17]}  h6 {[%clk 0:02:29]} 16. h3 {[%clk 0:02:15]}  Rac8 {[%clk 0:02:11]} 17. Bd3 {[%clk 0:02:13]}  Bxd3 {[%clk 0:01:56]} 18. Qxd3 {[%clk 0:02:14]}  e5 {[%clk 0:01:48]} 19. Na4 {[%clk 0:01:54]}  Qd8 {[%clk 0:01:33]} 20. Ng3 {[%clk 0:01:51]}  exd4 {[%clk 0:01:33]} 21. exd4 {[%clk 0:01:51]}  Bd6 {[%clk 0:01:33]} 22. Nf5 {[%clk 0:01:50]}  Bb8 {[%clk 0:01:33]} 23. Nc5 {[%clk 0:01:46]}  b6 {[%clk 0:01:31]} 24. Na6 {[%clk 0:01:46]}  Bf4 {[%clk 0:01:29]} 25. Be3 {[%clk 0:01:44]}  Bxe3+ {[%clk 0:01:26]} 26. Qxe3 {[%clk 0:01:45]}  Re8 {[%clk 0:01:21]} 27. Qf4 {[%clk 0:01:45]}  Re6 {[%clk 0:01:16]} 28. Rae1 {[%clk 0:01:43]}  Qd7 {[%clk 0:00:45]} 29. Rxe6 {[%clk 0:01:26]}  Qxe6 {[%clk 0:00:45]} 30. Kg2 {[%clk 0:01:09]}  Ne7 {[%clk 0:00:43]} 31. Nc7 {[%clk 0:00:20]}  Qd7 {[%clk 0:00:32]} 32. Rc1 {[%clk 0:00:09]}  Ng6 {[%clk 0:00:19]} 33. Qd6 {[%clk 0:00:08]}  Qa4 {[%clk 0:00:10]} 34. Re1 {[%clk 0:00:03]}  Qxa3 {[%clk 0:00:09]} 35. Kg3 {[%clk 0:00:03]}  Qb2 {[%clk 0:00:08]} 36. h4 {[%clk 0:00:03]}  Qd2 {[%clk 0:00:07]} 37. Ne7+ {[%clk 0:00:01]}  Nxe7 {[%clk 0:00:06]} 38. Rxe7 {[%clk 0:00:02]}  Qxd4 {[%clk 0:00:03]} 39. h5 {[%clk 0:00:03]}  Qg1+ {[%clk 0:00:04]} 40. Kh3 {[%clk 0:00:03]}  Qh1+ {[%clk 0:00:04]} 41. Kg3 {[%clk 0:00:03]}  Qg1+ {[%clk 0:00:04]} 42. Kh3 {[%clk 0:00:04]}  Qf1+ {[%clk 0:00:05]} 43. Kg3 {[%clk 0:00:04]}  d4 {[%clk 0:00:03]} 44. Qxd4 {[%clk 0:00:04]}  Qh1 {[%clk 0:00:02]} 45. Qe5 {[%clk 0:00:04]}  Qg1+ {[%clk 0:00:02]} 46. Kh3 {[%clk 0:00:04]}  Qh1+ {[%clk 0:00:03]} 47. Kg3 {[%clk 0:00:05]}  Qg1+ {[%clk 0:00:03]} 48. Kf4 {[%clk 0:00:05]}  Qc1+ {[%clk 0:00:03]} 49. Kg3 {[%clk 0:00:05]}  Qc6 {[%clk 0:00:03]} 50. Qf4 {[%clk 0:00:05]}  Qa4 {[%clk 0:00:02]} 51. b5 {[%clk 0:00:05]}  Qxf4+ {[%clk 0:00:01]} 52. Kxf4 {[%clk 0:00:06]}  Rxc7 {[%clk 0:00:02]} 53. Re5 {[%clk 0:00:04]}  Rc4+ {[%clk 0:00:02]} 54. Kg3 {[%clk 0:00:04]}  Rc5 {[%clk 0:00:03]} 55. Re7 {[%clk 0:00:04]}  Rxb5 {[%clk 0:00:03]} 56. Rxa7 {[%clk 0:00:05]}  Rb3 {[%clk 0:00:03]} 57. Rb7 {[%clk 0:00:05]}  Nd5 {[%clk 0:00:03]} 58. Rb8+ {[%clk 0:00:06]}  Kh7 {[%clk 0:00:02]} 59. Rb7 {[%clk 0:00:07]}  Nf6 {[%clk 0:00:02]} 60. Rxf7 {[%clk 0:00:07]}  b5 {[%clk 0:00:03]} 61. Kh4 {[%clk 0:00:07]}  Rxf3 {[%clk 0:00:02]} 62. Rb7 {[%clk 0:00:07]}  Rf4 {[%clk 0:00:02]} 63. Kh3 {[%clk 0:00:08]}  Rxg4 {[%clk 0:00:03]} 64. Rxb5 {[%clk 0:00:08]}  Rg5 {[%clk 0:00:03]} 65. Rb7 {[%clk 0:00:08]}  Rxh5+ {[%clk 0:00:04]} 0-1


[Site "https://www.chess.com"]

[Event "Titled Tuesday Blitz June 28 Early 2022"]
[White "Hollan, Petr"]
[Black "Mrudul Dehankar"]
[WhiteFideId "360945"]
[BlackFideId "25096990"]
[WhiteElo "2284"]
[BlackElo "1766"]
[Result "1-0"]
[Round "06"]
[TimeControl "180+1"]
[Date "2022.06.28"]
[WhiteClock "0:01:15"]
[BlackClock "0:00:01"]

1. e4 {[%clk 0:02:58]}  c5 {[%clk 0:02:54]} 2. Nf3 {[%clk 0:02:51]}  d6 {[%clk 0:02:49]} 3. d4 {[%clk 0:02:52]}  cxd4 {[%clk 0:02:47]} 4. Qxd4 {[%clk 0:02:47]}  a6 {[%clk 0:02:46]} 5. c4 {[%clk 0:02:44]}  Nc6 {[%clk 0:02:44]} 6. Qe3 {[%clk 0:02:44]}  g6 {[%clk 0:02:43]} 7. Be2 {[%clk 0:02:37]}  Bg7 {[%clk 0:02:40]} 8. O-O {[%clk 0:02:36]}  Nf6 {[%clk 0:02:36]} 9. h3 {[%clk 0:02:33]}  O-O {[%clk 0:02:35]} 10. Nc3 {[%clk 0:02:32]}  Ne8 {[%clk 0:02:29]} 11. Rd1 {[%clk 0:02:31]}  Nc7 {[%clk 0:02:29]} 12. c5 {[%clk 0:02:27]}  Ne6 {[%clk 0:00:53]} 13. cxd6 {[%clk 0:02:24]}  exd6 {[%clk 0:00:53]} 14. b3 {[%clk 0:02:22]}  Re8 {[%clk 0:00:44]} 15. Bb2 {[%clk 0:02:19]}  Nc5 {[%clk 0:00:41]} 16. Rab1 {[%clk 0:02:02]}  b5 {[%clk 0:00:37]} 17. Nd5 {[%clk 0:01:34]}  Rxe4 {[%clk 0:00:19]} 18. Qd2 {[%clk 0:01:30]}  f6 {[%clk 0:00:02]} 19. Rbc1 {[%clk 0:01:25]}  Be6 {[%clk 0:00:01]} 20. Nc3 {[%clk 0:01:18]}  Bf5 {[%clk 0:00:01]} 21. Nxe4 {[%clk 0:01:16]}  Nxe4 {[%clk 0:00:01]} 22. Qd5+ {[%clk 0:01:15]} 1-0


[Site "https://www.chess.com"]

[Event "Titled Tuesday Blitz June 28 Early 2022"]
[White "Ianov, Viktor"]
[Black "OKEKE, Isaac Chukwudalu"]
[WhiteFideId "14102730"]
[BlackFideId "8508526"]
[WhiteElo "2152"]
[BlackElo "2102"]
[Result "0-1"]
[Round "06"]
[TimeControl "180+1"]
[Date "2022.06.28"]
[WhiteClock "0:02:35"]
[BlackClock "0:02:23"]

1. Nf3 {[%clk 0:03:00]}  d5 {[%clk 0:02:59]} 2. g3 {[%clk 0:03:00]}  Bg4 {[%clk 0:03:00]} 3. Bg2 {[%clk 0:03:01]}  c6 {[%clk 0:02:59]} 4. d3 {[%clk 0:03:00]}  e6 {[%clk 0:02:59]} 5. h3 {[%clk 0:03:00]}  Bxf3 {[%clk 0:02:59]} 6. Bxf3 {[%clk 0:02:59]}  Nf6 {[%clk 0:03:00]} 7. Nd2 {[%clk 0:02:59]}  Nbd7 {[%clk 0:03:00]} 8. c4 {[%clk 0:02:58]}  Bc5 {[%clk 0:03:00]} 9. O-O {[%clk 0:02:54]}  Qc7 {[%clk 0:02:59]} 10. b3 {[%clk 0:02:52]}  Qxg3+ {[%clk 0:02:57]} 11. Bg2 {[%clk 0:02:52]}  h5 {[%clk 0:02:28]} 12. b4 {[%clk 0:02:51]}  Ng4 {[%clk 0:02:24]} 13. hxg4 {[%clk 0:02:35]}  hxg4 {[%clk 0:02:23]} 0-1


[Site "https://www.chess.com"]